bitfinex/quotes_BTCUSD_20250817
["timestamp","ask_amount","ask_price","bid_price","bid_amount"]
[1755403048726,0.43131138,117870.0,117860.0,0.21972405]
[1755403050349,0.21310081,117870.0,117860.0,0.21972405]
[1755403050572,0.43131138,117870.0,117860.0,0.21972405]
[1755403057331,0.43131138,117870.0,117860.0,0.08797405]
[1755403057539,0.43131138,117870.0,117860.0,0.21769405]
[1755403057975,0.43131138,117870.0,117860.0,0.13288]
[1755403058198,0.43131138,117870.0,117860.0,0.12972]
[1755403059607,0.43031138,117870.0,117860.0,0.12972]
[1755403060063,0.42931138,117870.0,117860.0,0.12972]
[1755403060274,0.43131138,117870.0,117860.0,0.12972]
[1755403060490,0.43331138,117870.0,117860.0,0.12972]
[1755403061535,0.43131138,117870.0,117860.0,0.12972]
[1755403061973,0.43231138,117870.0,117860.0,0.12972]
[1755403062370,0.93231138,117870.0,117860.0,0.12972]
[1755403063217,0.91639629,117870.0,117860.0,0.13278]
[1755403063429,0.93230891,117870.0,117860.0,0.13278]
[1755403063860,0.93230812,117870.0,117860.0,0.13278]
[1755403064095,0.93230812,117870.0,117860.0,0.12972]
[1755403065489,0.93230812,117870.0,117860.0,0.13278]
[1755403066497,0.93230711,117870.0,117860.0,0.13278]
[1755403069289,0.96735629,117870.0,117860.0,0.13278]
[1755403069499,0.98326685,117870.0,117860.0,0.13278]
[1755403070015,0.98326685,117870.0,117860.0,0.00306]
[1755403072229,0.98326619,117870.0,117860.0,0.00306]
[1755403078238,0.96735629,117870.0,117860.0,0.00306]
[1755403078465,0.98326591,117870.0,117860.0,0.00306]
[1755403079097,0.98326591,117870.0,117860.0,0.13274]
[1755403081046,0.98326644,117870.0,117860.0,0.13274]
[1755403081889,0.98326644,117870.0,117860.0,0.13474]
[1755403082301,0.96735629,117870.0,117860.0,0.13474]
[1755403082502,0.98326682,117870.0,117860.0,0.13474]
[1755403086393,0.76505625,117870.0,117860.0,0.13474]
[1755403086609,0.98326682,117870.0,117860.0,0.13474]
[1755403089407,0.96735629,117870.0,117860.0,0.13474]
[1755403089625,0.98327275,117870.0,117860.0,0.13474]
[1755403092892,0.96996421,117870.0,117860.0,0.13474]
[1755403095468,0.95404775,117870.0,117860.0,0.13474]
[1755403095663,0.96996763,117870.0,117860.0,0.13474]
[1755403107502,0.95404775,117870.0,117860.0,0.13474]
[1755403107715,0.96997005,117870.0,117860.0,0.13474]
[1755403119898,0.96997005,117870.0,117860.0,0.12968]
[1755403120557,0.16969285,117860.0,117850.0,0.00323]
[1755403120783,0.38790342,117860.0,117850.0,0.13492]
[1755403120994,0.40382572,117860.0,117850.0,0.13492]
[1755403121212,0.41225132,117860.0,117850.0,0.13492]
[1755403122139,0.43875532,117860.0,117850.0,0.13492]
[1755403122622,0.43875127,117860.0,117850.0,0.13492]
[1755403122846,0.42383302,117860.0,117850.0,0.13492]
[1755403123061,0.43975127,117860.0,117850.0,0.13492]
[1755403124266,0.65796184,117860.0,117850.0,0.13279]
[1755403124532,0.65796184,117860.0,117850.0,0.12956]
[1755403124834,0.43975127,117860.0,117850.0,0.12956]
[1755403125211,0.2215407,117860.0,117850.0,0.13279]
[1755403125432,0.43975127,117860.0,117850.0,0.13279]
[1755403126985,0.43975127,117860.0,117850.0,0.13492]
[1755403128737,0.43974595,117860.0,117850.0,0.13492]
[1755403129851,0.43974595,117860.0,117850.0,0.30462725]
[1755403131237,0.22153538,117860.0,117850.0,0.30462725]
[1755403131442,0.49070595,117860.0,117850.0,0.30462725]
[1755403134749,0.47479302,117860.0,117850.0,0.30462725]
[1755403134877,0.49070364,117860.0,117850.0,0.30462725]
[1755403135329,0.49070357,117860.0,117850.0,0.30462725]
[1755403137848,0.49070339,117860.0,117850.0,0.30462725]
[1755403141471,0.27249282,117860.0,117850.0,0.30462725]
[1755403141695,0.49070339,117860.0,117850.0,0.30462725]
[1755403142683,0.27249282,117860.0,117850.0,0.30462725]
[1755403142855,0.49070339,117860.0,117850.0,0.30462725]
[1755403145700,0.47479302,117860.0,117850.0,0.30462725]
[1755403145928,0.49070588,117860.0,117850.0,0.30462725]
[1755403146352,0.49070656,117860.0,117850.0,0.30462725]
[1755403147381,0.27249599,117860.0,117850.0,0.30462725]
[1755403147581,0.49070656,117860.0,117850.0,0.30462725]
[1755403151417,0.27249599,117860.0,117850.0,0.30462725]
[1755403151633,0.49070656,117860.0,117850.0,0.30462725]
[1755403151979,0.49071347,117860.0,117850.0,0.30462725]
[1755403155219,0.2725029,117860.0,117850.0,0.30462725]
[1755403155419,0.49071347,117860.0,117850.0,0.30462725]
[1755403157638,0.47479302,117860.0,117850.0,0.30462725]
[1755403157849,0.49071595,117860.0,117850.0,0.30462725]
[1755403159446,0.27250538,117860.0,117850.0,0.30462725]
[1755403159625,0.49071595,117860.0,117850.0,0.30462725]
[1755403169774,0.47479302,117860.0,117850.0,0.30462725]
[1755403169991,0.49071571,117860.0,117850.0,0.30462725]
[1755403170447,0.27250514,117860.0,117850.0,0.30462725]
[1755403170962,0.49071571,117860.0,117850.0,0.30462725]
[1755403176791,0.27250514,117860.0,117850.0,0.30462725]
[1755403177048,0.49071571,117860.0,117850.0,0.30462725]
[1755403177858,0.27250514,117860.0,117850.0,0.30462725]
[1755403178086,0.49071571,117860.0,117850.0,0.30462725]
[1755403181999,0.49071553,117860.0,117850.0,0.30462725]
[1755403189321,0.49071553,117860.0,117850.0,0.13492]
[1755403190498,0.27250496,117860.0,117850.0,0.13492]
[1755403190748,0.49071553,117860.0,117850.0,0.13492]
[1755403193962,0.47479302,117860.0,117850.0,0.13492]
[1755403194176,0.49071543,117860.0,117850.0,0.13492]
[1755403194621,0.49071542,117860.0,117850.0,0.13492]
[1755403198966,0.27250485,117860.0,117850.0,0.30462725]
[1755403199272,0.49071542,117860.0,117850.0,0.30462725]
[1755403200778,0.27250485,117860.0,117850.0,0.30462725]
[1755403201001,0.49071542,117860.0,117850.0,0.30462725]
[1755403201364,0.24700085,117860.0,117850.0,0.30462725]
[1755403201904,0.24700098,117860.0,117850.0,0.30462725]
[1755403202102,0.01792253,117860.0,117850.0,0.60765187]
[1755403202268,0.002,117860.0,117850.0,0.67875951]
[1755403203054,0.002,117860.0,117850.0,0.60765187]
[1755403205692,0.01058895,117860.0,117850.0,0.60765187]
[1755403208168,0.01058895,117860.0,117850.0,0.3894413]
[1755403208350,0.01058895,117860.0,117850.0,0.60765187]
[1755403212644,0.01058895,117860.0,117850.0,0.3894413]
[1755403213372,0.39849237,117860.0,117850.0,0.3894413]
[1755403213631,0.41440901,117860.0,117850.0,0.3894413]
[1755403214065,0.39849237,117860.0,117850.0,0.3894413]
[1755403214248,0.41440795,117860.0,117850.0,0.3894413]
[1755403216719,0.19619738,117860.0,117850.0,0.3894413]
[1755403216922,0.41440795,117860.0,117850.0,0.3894413]
[1755403219078,0.41440795,117860.0,117850.0,0.3890813]
[1755403219291,0.41440795,117860.0,117850.0,0.2598813]
[1755403219486,0.41440795,117860.0,117850.0,0.3890813]
[1755403219862,0.41440795,117860.0,117850.0,0.2598813]
[1755403220079,0.41440865,117860.0,117850.0,0.3890813]
[1755403220284,0.19619808,117860.0,117850.0,0.3890813]
[1755403220513,0.41440865,117860.0,117850.0,0.3890813]
[1755403221288,0.41440865,117860.0,117850.0,0.2598813]
[1755403221592,0.41440865,117860.0,117850.0,0.3890813]
[1755403222033,0.4110995,117860.0,117850.0,0.3890813]
[1755403222922,0.39518322,117860.0,117850.0,0.3890813]
[1755403223125,0.41110004,117860.0,117850.0,0.3890813]
[1755403223753,0.40382024,117860.0,117850.0,0.3890813]
[1755403225967,0.40382097,117860.0,117850.0,0.3890813]
[1755403226581,0.40382127,117860.0,117850.0,0.3890813]
[1755403228326,0.41216519,117860.0,117850.0,0.3890813]
[1755403229184,0.41216591,117860.0,117850.0,0.3890813]
[1755403233431,0.19395534,117860.0,117850.0,0.3890813]
[1755403233664,0.41216591,117860.0,117850.0,0.3890813]
[1755403236987,0.19395534,117860.0,117850.0,0.3890813]
[1755403237198,0.41216591,117860.0,117850.0,0.3890813]
[1755403237935,0.19395534,117860.0,117850.0,0.3890813]
[1755403238155,0.41216736,117860.0,117850.0,0.3890813]
[1755403243457,0.39624734,117860.0,117850.0,0.3890813]
[1755403243667,0.41216994,117860.0,117850.0,0.3890813]
[1755403250105,0.39624734,117860.0,117850.0,0.3890813]
[1755403250315,0.41216988,117860.0,117850.0,0.3890813]
[1755403255451,0.19395931,117860.0,117850.0,0.3890813]
[1755403255646,0.41216988,117860.0,117850.0,0.3890813]
[1755403260293,0.41216989,117860.0,117850.0,0.3890813]
[1755403260511,0.19395932,117860.0,117850.0,0.3890813]
[1755403260727,0.41216989,117860.0,117850.0,0.3890813]
[1755403261352,0.39624734,117860.0,117850.0,0.3890813]
[1755403261564,0.4121699,117860.0,117850.0,0.3890813]
[1755403270452,0.41216999,117860.0,117850.0,0.3890813]
[1755403274442,0.40382607,117860.0,117850.0,0.3890813]
[1755403276546,0.40382599,117860.0,117850.0,0.3890813]
[1755403279418,0.38790342,117860.0,117850.0,0.3890813]
[1755403279624,0.40382597,117860.0,117850.0,0.3890813]
[1755403282640,0.40382596,117860.0,117850.0,0.3890813]
[1755403284946,0.18561539,117860.0,117850.0,0.3890813]
[1755403285153,0.16969285,117860.0,117850.0,0.3890813]
[1755403285350,0.38790342,117860.0,117850.0,0.3890813]
[1755403285501,0.40382596,117860.0,117850.0,0.3890813]
[1755403288646,0.18561541,117860.0,117850.0,0.3890813]
[1755403289957,0.16969285,117860.0,117850.0,0.2598813]
[1755403290369,0.16969285,117860.0,117850.0,0.3888413]
[1755403291629,0.38790342,117860.0,117850.0,0.3888413]
[1755403291853,0.40382598,117860.0,117850.0,0.3888413]
[1755403293607,0.18561541,117860.0,117850.0,0.3888413]
[1755403294208,0.16969285,117860.0,117850.0,0.3888413]
[1755403296241,0.38790342,117860.0,117850.0,0.3888413]
[1755403296449,0.18561541,117860.0,117850.0,0.3888413]
[1755403297068,0.16969285,117860.0,117850.0,0.3888413]
[1755403298123,0.38790342,117860.0,117850.0,0.3888413]
[1755403298333,0.01592256,117860.0,117850.0,0.60705187]
[1755403298534,1.04497431,117870.0,117850.0,0.60705187]
[1755403298667,1.04497431,117870.0,117850.0,0.60382187]
[1755403298881,1.38497431,117870.0,117860.0,0.00301]
[1755403299988,1.38697431,117870.0,117860.0,0.00301]
[1755403300238,1.03980374,117870.0,117860.0,0.00301]
[1755403300421,1.26001431,117870.0,117860.0,0.00301]
[1755403300631,1.26001443,117870.0,117860.0,0.00301]
[1755403300840,1.26201443,117870.0,117860.0,0.00301]
[1755403301527,1.04380386,117870.0,117860.0,0.00301]
[1755403301730,1.26201443,117870.0,117860.0,0.00301]
[1755403301937,1.04380386,117870.0,117860.0,0.00301]
[1755403302146,1.04180386,117870.0,117860.0,0.00301]
[1755403302366,1.26001443,117870.0,117860.0,0.00301]
[1755403302784,1.26201443,117870.0,117860.0,0.00301]
[1755403303586,1.04380386,117870.0,117860.0,0.00301]
[1755403303921,1.26201443,117870.0,117860.0,0.00301]
[1755403307580,1.04380386,117870.0,117860.0,0.00301]
[1755403307836,1.26201443,117870.0,117860.0,0.00301]
[1755403308977,1.39093443,117870.0,117860.0,0.00301]
[1755403309281,1.17272386,117870.0,117860.0,0.00301]
[1755403309772,1.39093437,117870.0,117860.0,0.00301]
[1755403310952,0.86192262,117870.0,117860.0,0.47995863]
[1755403311162,0.86192262,117870.0,117860.0,0.55570006]
[1755403311535,0.86192262,117870.0,117860.0,0.33748949]
[1755403311771,0.86192262,117870.0,117860.0,0.55570006]
[1755403312617,0.846,117870.0,117860.0,0.55570006]
[1755403312952,0.86191404,117870.0,117860.0,0.55570006]
[1755403313370,0.506,117870.0,117860.0,0.77391063]
[1755403313574,0.506,117870.0,117860.0,0.55570006]
[1755403316045,0.504,117870.0,117860.0,0.55570006]
[1755403316251,0.502,117870.0,117860.0,0.77391063]
[1755403316657,0.503,117870.0,117860.0,0.55570006]
[1755403316848,0.501,117870.0,117860.0,0.55570006]
[1755403317056,0.502,117870.0,117860.0,0.55570006]
[1755403321231,0.502,117870.0,117860.0,0.33748949]
[1755403321435,0.502,117870.0,117860.0,0.55570006]
[1755403321623,0.502,117870.0,117860.0,0.33748949]
[1755403321768,0.502,117870.0,117860.0,0.55570006]
[1755403327053,0.502,117870.0,117860.0,0.77391063]
[1755403327269,0.502,117870.0,117860.0,0.33748949]
[1755403327705,0.502,117870.0,117860.0,0.36298449]
[1755403327911,0.501,117870.0,117860.0,0.79940563]
[1755403328126,0.501,117870.0,117860.0,0.36298449]
[1755403328334,0.501,117870.0,117860.0,0.79940563]
[1755403328992,0.5,117870.0,117860.0,0.79940563]
[1755403329427,0.501,117870.0,117860.0,0.80040563]
[1755403329607,0.501,117870.0,117860.0,0.79940563]
[1755403330023,0.501,117870.0,117860.0,0.36498449]
[1755403330024,0.5,117870.0,117860.0,0.36498449]
[1755403330232,0.5,117870.0,117860.0,0.80240563]
[1755403331075,0.5,117870.0,117860.0,0.82545563]
[1755403331849,0.5,117870.0,117860.0,0.38903449]
[1755403332053,0.5,117870.0,117860.0,0.82545563]
[1755403337821,0.5,117870.0,117860.0,0.95477563]
[1755403338023,0.5,117870.0,117860.0,0.99273481]
[1755403338631,0.5,117870.0,117860.0,1.55094538]
[1755403338867,0.5,117870.0,117860.0,1.5683944]
[1755403339417,0.5,117870.0,117860.0,1.35018383]
[1755403339621,0.5,117870.0,117860.0,0.91376269]
[1755403340041,0.5,117870.0,117860.0,1.30968481]
[1755403341806,0.5,117870.0,117860.0,0.87326367]
[1755403342041,0.5,117870.0,117860.0,1.30968481]
[1755403343783,0.5,117870.0,117860.0,0.89326367]
[1755403343992,0.5,117870.0,117860.0,1.32968481]
[1755403346488,0.5,117870.0,117860.0,1.29172563]
[1755403349911,0.5,117870.0,117860.0,0.85530449]
[1755403350153,0.5,117870.0,117860.0,1.29172563]
[1755403351062,0.5,117870.0,117860.0,0.85530449]
[1755403351313,0.5,117870.0,117860.0,1.29172563]
[1755403353389,0.5,117870.0,117860.0,0.85530449]
[1755403353590,0.5,117870.0,117860.0,1.29172563]
[1755403355040,0.5,117870.0,117860.0,0.85530449]
[1755403355243,0.5,117870.0,117860.0,1.29172563]
[1755403355700,0.5,117870.0,117860.0,0.85530449]
[1755403355935,0.5,117870.0,117860.0,1.29172563]
[1755403357080,0.5,117870.0,117860.0,0.85530449]
[1755403357304,0.5,117870.0,117860.0,1.29172563]
[1755403358530,0.5,117870.0,117860.0,0.85530449]
[1755403358738,0.5,117870.0,117860.0,1.29172563]
[1755403359261,0.5,117870.0,117860.0,0.85530449]
[1755403359506,0.5,117870.0,117860.0,1.29172563]
[1755403359727,0.48,117870.0,117860.0,0.83530449]
[1755403359951,0.48,117870.0,117860.0,1.27172563]
[1755403360212,0.48,117870.0,117860.0,0.83530449]
[1755403360651,0.48,117870.0,117860.0,1.27172563]
[1755403362062,0.48,117870.0,117860.0,0.83530449]
[1755403362301,0.48,117870.0,117860.0,1.27172563]
[1755403362857,0.48,117870.0,117860.0,0.83530449]
[1755403363078,0.48,117870.0,117860.0,1.27172563]
[1755403364503,0.48,117870.0,117860.0,1.14240563]
[1755403364698,0.48,117870.0,117860.0,0.70086449]
[1755403364906,0.48,117870.0,117860.0,0.36086449]
[1755403365244,0.48,117870.0,117860.0,0.71099506]
[1755403365448,0.48,117870.0,117860.0,0.57907506]
[1755403365857,0.48,117870.0,117860.0,0.71099506]
[1755403366296,0.48,117870.0,117860.0,0.49278449]
[1755403366543,0.48,117870.0,117860.0,0.63313247]
[1755403366866,0.48,117870.0,117860.0,0.50121247]
[1755403367072,0.48,117870.0,117860.0,0.63309247]
[1755403367288,0.48,117870.0,117860.0,0.50121247]
[1755403367914,0.48,117870.0,117860.0,0.63305247]
[1755403368115,0.48,117870.0,117860.0,0.63301247]
[1755403368317,0.48,117870.0,117860.0,0.71783371]
[1755403369261,0.48,117870.0,117860.0,0.58603371]
[1755403369686,0.48,117870.0,117860.0,0.36782314]
[1755403369892,0.69821057,117870.0,117860.0,0.3892669]
[1755403370065,0.48,117870.0,117860.0,0.3892669]
[1755403370479,0.48,117870.0,117860.0,0.60747747]
[1755403376765,0.48,117870.0,117860.0,0.61071747]
[1755403376973,0.48,117870.0,117860.0,0.69130954]
[1755403378268,0.48,117870.0,117860.0,0.47309897]
[1755403378450,0.48,117870.0,117860.0,0.69130954]
[1755403378660,0.48,117870.0,117860.0,0.47309897]
[1755403378870,0.48,117870.0,117860.0,0.69130954]
[1755403379181,0.48,117870.0,117860.0,0.47309897]
[1755403379397,0.48,117870.0,117860.0,0.69130954]
[1755403380258,0.48,117870.0,117860.0,0.47309897]
[1755403380477,0.48,117870.0,117860.0,0.69130954]
[1755403381751,0.48,117870.0,117860.0,0.55954954]
[1755403381948,0.48,117870.0,117860.0,0.69130954]
[1755403382161,0.48,117870.0,117860.0,0.47309897]
[1755403382592,0.48,117870.0,117860.0,0.69130954]
[1755403383456,0.48,117870.0,117860.0,0.71680554]
[1755403383896,0.48,117870.0,117860.0,0.71887554]
[1755403384747,0.48,117870.0,117860.0,0.50066497]
[1755403384951,0.48,117870.0,117860.0,0.71887554]
[1755403386649,0.48,117870.0,117860.0,0.50066497]
[1755403386849,0.48,117870.0,117860.0,0.71887554]
[1755403388424,0.47,117870.0,117860.0,0.71887554]
[1755403389697,0.47,117870.0,117860.0,0.69337954]
[1755403389907,0.47,117870.0,117860.0,0.91159011]
[1755403390332,0.47,117870.0,117860.0,0.93708311]
[1755403392037,0.47,117870.0,117860.0,1.5367827]
[1755403392666,0.47,117870.0,117860.0,1.31857213]
[1755403395630,0.47,117870.0,117860.0,0.85811099]
[1755403395843,0.47,117870.0,117860.0,1.29453213]
[1755403396705,0.47,117870.0,117860.0,0.85811099]
[1755403396903,0.47,117870.0,117860.0,1.29453213]
[1755403398715,0.47,117870.0,117860.0,1.14842122]
[1755403405472,0.47,117870.0,117860.0,0.85811099]
[1755403405690,0.47,117870.0,117860.0,1.14842122]
[1755403406127,0.47,117870.0,117860.0,0.85811099]
[1755403406341,0.47,117870.0,117860.0,1.14842122]
[1755403408085,0.47,117870.0,117860.0,0.85811099]
[1755403408306,0.47,117870.0,117860.0,1.14842122]
[1755403408774,0.47,117870.0,117860.0,0.85811099]
[1755403408981,0.47,117870.0,117860.0,1.14842122]
[1755403415075,0.47,117870.0,117860.0,1.1316122]
[1755403415291,0.47,117870.0,117860.0,1.1295422]
[1755403416579,0.47,117870.0,117860.0,0.83923197]
[1755403416803,0.47,117870.0,117860.0,0.49599197]
[1755403417051,0.47,117870.0,117860.0,0.7863022]
[1755403418385,0.47,117870.0,117860.0,0.7608092]
[1755403419143,0.47,117870.0,117860.0,0.7637692]
[1755403420443,0.47,117870.0,117860.0,0.47345897]
[1755403420577,0.47,117870.0,117860.0,0.7637692]
[1755403420824,0.47,117870.0,117860.0,0.69124096]
[1755403423434,0.47,117870.0,117860.0,0.91109295]
[1755403426914,0.47,117870.0,117860.0,0.47552897]
[1755403427193,0.47,117870.0,117860.0,0.91109295]
[1755403427420,0.47,117870.0,117860.0,0.69331096]
[1755403427608,0.47,117870.0,117860.0,1.03331096]
[1755403428724,0.47,117870.0,117860.0,1.25109295]
[1755403430002,0.47,117870.0,117860.0,1.03331096]
[1755403430446,0.47,117870.0,117860.0,0.81552897]
[1755403430669,0.47,117870.0,117860.0,1.03331096]
[1755403446368,0.47,117870.0,117860.0,0.81552897]
[1755403446577,0.47,117870.0,117860.0,1.03331096]
[1755403448134,0.47,117870.0,117860.0,0.81552897]
[1755403448333,0.47,117870.0,117860.0,1.03331096]
[1755403451541,0.47,117870.0,117860.0,0.81552897]
[1755403452003,0.47,117870.0,117860.0,1.03331096]
[1755403453609,0.47,117870.0,117860.0,0.81552897]
[1755403453829,0.47,117870.0,117860.0,1.03331096]
[1755403457545,0.47,117870.0,117860.0,0.81552897]
[1755403457786,0.47,117870.0,117860.0,1.03331096]
[1755403464950,0.47,117870.0,117860.0,0.81552897]
[1755403465124,0.47,117870.0,117860.0,1.03331096]
[1755403466910,0.47,117870.0,117860.0,0.81552897]
[1755403467121,0.47,117870.0,117860.0,1.03331096]
[1755403468467,0.47,117870.0,117860.0,0.81552897]
[1755403468688,0.47,117870.0,117860.0,1.03331096]
[1755403474583,0.47,117870.0,117860.0,0.81552897]
[1755403474808,0.47,117870.0,117860.0,1.03331096]
[1755403475255,0.47,117870.0,117860.0,0.81552897]
[1755403475476,0.47,117870.0,117860.0,1.03331096]
[1755403477435,0.47,117870.0,117860.0,0.81552897]
[1755403477651,0.47,117870.0,117860.0,1.03331096]
[1755403479801,0.47,117870.0,117860.0,1.05880496]
[1755403483329,0.47,117870.0,117860.0,0.84102297]
[1755403483531,0.47,117870.0,117860.0,1.05880496]
[1755403485860,0.47,117870.0,117860.0,0.84102297]
[1755403486083,0.47,117870.0,117860.0,1.05880496]
[1755403491938,0.47,117870.0,117860.0,0.84102297]
[1755403492245,0.47,117870.0,117860.0,1.05880496]
[1755403499327,0.47,117870.0,117860.0,1.27658695]
[1755403499470,0.47,117870.0,117860.0,0.84102297]
[1755403499682,0.47,117870.0,117860.0,1.05880496]
[1755403501176,0.47,117870.0,117860.0,0.84102297]
[1755403501381,0.47,117870.0,117860.0,1.05880496]
[1755403505828,0.47,117870.0,117860.0,0.84102297]
[1755403506035,0.47,117870.0,117860.0,1.05880496]
[1755403508744,0.47,117870.0,117860.0,0.84102297]
[1755403509271,0.47,117870.0,117860.0,1.05880496]
[1755403511345,0.47,117870.0,117860.0,0.84102297]
[1755403511583,0.47,117870.0,117860.0,1.05880496]
[1755403512056,0.47,117870.0,117860.0,0.84102297]
[1755403512297,0.47,117870.0,117860.0,1.05880496]
[1755403513130,0.47,117870.0,117860.0,0.84102297]
[1755403513350,0.47,117870.0,117860.0,1.05880496]
[1755403513579,0.47,117870.0,117860.0,0.84102297]
[1755403513805,0.47,117870.0,117860.0,1.05880496]
[1755403514205,0.47,117870.0,117860.0,0.84102297]
[1755403514455,0.47,117870.0,117860.0,1.05880496]
[1755403515202,0.47,117870.0,117860.0,0.84102297]
[1755403515432,0.47,117870.0,117860.0,1.05880496]
[1755403515681,0.47,117870.0,117860.0,0.70862297]
[1755403515930,0.47,117870.0,117860.0,1.05728496]
[1755403516376,0.68778199,117870.0,117860.0,0.70862297]
[1755403516621,0.47,117870.0,117860.0,0.81189897]
[1755403517751,0.47,117870.0,117860.0,0.81185897]
[1755403517984,0.68778199,117870.0,117860.0,0.68105897]
[1755403518215,0.68778199,117870.0,117860.0,0.3883069]
[1755403518678,0.85746044,117870.0,117860.0,0.3883069]
[1755403518905,0.85746044,117870.0,117860.0,0.3873069]
[1755403519163,0.85746044,117870.0,117860.0,0.3853069]
[1755403520285,0.63967845,117870.0,117860.0,0.3853069]
[1755403520549,0.85746044,117870.0,117860.0,0.3853069]
[1755403521299,0.85746044,117870.0,117860.0,0.3863069]
[1755403521922,0.85742043,117870.0,117860.0,0.3863069]
[1755403523250,0.85742043,117870.0,117860.0,0.46400251]
[1755403523489,0.85742043,117870.0,117860.0,0.3863069]
[1755403523681,0.85742043,117870.0,117860.0,0.3861869]
[1755403524459,0.85742043,117870.0,117860.0,0.3851869]
[1755403524670,0.85842043,117870.0,117860.0,0.3851869]
[1755403524915,0.64163844,117870.0,117860.0,0.3851869]
[1755403525363,0.64163844,117870.0,117860.0,0.44099232]
[1755403525364,0.85842043,117870.0,117860.0,0.44099232]
[1755403525595,0.85842043,117870.0,117860.0,0.3851869]
[1755403525811,0.85942043,117870.0,117860.0,0.3851869]
[1755403529529,0.68974198,117870.0,117860.0,0.3851869]
[1755403532251,0.68974198,117870.0,117860.0,0.3883469]
[1755403533437,0.47195999,117870.0,117860.0,0.3883469]
[1755403533666,0.47195999,117870.0,117860.0,0.46593051]
[1755403533891,0.68974198,117870.0,117860.0,0.46593051]
[1755403534115,0.68974198,117870.0,117860.0,0.46790051]
[1755403535104,0.47195999,117870.0,117860.0,0.46790051]
[1755403535570,0.68974198,117870.0,117860.0,0.46790051]
[1755403536020,0.68974198,117870.0,117860.0,0.3903169]
[1755403538572,0.47195999,117870.0,117860.0,0.3903169]
[1755403538801,0.68974198,117870.0,117860.0,0.3903169]
[1755403540052,0.47195999,117870.0,117860.0,0.3903169]
[1755403540266,0.68974198,117870.0,117860.0,0.3903169]
[1755403540475,0.47195999,117870.0,117860.0,0.3903169]
[1755403540708,0.68974198,117870.0,117860.0,0.3903169]
[1755403541504,0.85942043,117870.0,117860.0,0.3903169]
[1755403541686,0.85942043,117870.0,117860.0,0.3883469]
[1755403542812,0.68974198,117870.0,117860.0,0.3883469]
[1755403543222,0.68974198,117870.0,117860.0,0.44415232]
[1755403543902,0.68974198,117870.0,117860.0,0.44612232]
[1755403546239,0.47195999,117870.0,117860.0,0.44612232]
[1755403546505,0.68974198,117870.0,117860.0,0.44612232]
[1755403547526,0.68974198,117870.0,117860.0,0.3903169]
[1755403549233,0.68974198,117870.0,117860.0,0.3883469]
[1755403549446,0.85942043,117870.0,117860.0,0.3883469]
[1755403552904,0.85942043,117870.0,117860.0,0.3903169]
[1755403553819,0.64163844,117870.0,117860.0,0.3903169]
[1755403554024,0.85942043,117870.0,117860.0,0.3903169]
[1755403554234,0.85942043,117870.0,117860.0,0.46809751]
[1755403554871,0.64163844,117870.0,117860.0,0.46809751]
[1755403555080,0.85942043,117870.0,117860.0,0.46809751]
[1755403555375,0.64163844,117870.0,117860.0,0.46809751]
[1755403555574,0.85942043,117870.0,117860.0,0.46809751]
[1755403560311,0.47195999,117870.0,117860.0,0.46809751]
[1755403560519,0.68974198,117870.0,117860.0,0.46809751]
[1755403561359,0.47195999,117870.0,117860.0,0.46809751]
[1755403561728,0.68974198,117870.0,117860.0,0.46809751]
[1755403564919,0.68974198,117870.0,117860.0,0.3903169]
[1755403566213,0.47195999,117870.0,117860.0,0.3903169]
[1755403566427,0.68974198,117870.0,117860.0,0.3903169]
[1755403567071,0.47195999,117870.0,117860.0,0.3903169]
[1755403567279,0.68974198,117870.0,117860.0,0.3903169]
[1755403568968,0.68974198,117870.0,117860.0,0.43234407]
[1755403569552,0.47195999,117870.0,117860.0,0.43234407]
[1755403569766,0.68974198,117870.0,117860.0,0.43234407]
[1755403570361,0.47195999,117870.0,117860.0,0.43234407]
[1755403570551,0.68974198,117870.0,117860.0,0.43234407]
[1755403575339,0.47195999,117870.0,117860.0,0.43234407]
[1755403576456,0.68974198,117870.0,117860.0,0.43234407]
[1755403578480,0.47195999,117870.0,117860.0,0.43234407]
[1755403583381,0.68974198,117870.0,117860.0,0.43234407]
[1755403584461,0.47195999,117870.0,117860.0,0.3903169]
[1755403584663,0.68974198,117870.0,117860.0,0.3903169]
[1755403585169,0.47195999,117870.0,117860.0,0.3903169]
[1755403585376,0.68974198,117870.0,117860.0,0.3903169]
[1755403585582,0.47195999,117870.0,117860.0,0.3903169]
[1755403585734,0.47195999,117870.0,117860.0,0.46809751]
[1755403587630,0.68974198,117870.0,117860.0,0.46809751]
[1755403587955,0.68974198,117870.0,117860.0,0.3903169]
[1755403588597,0.47195999,117870.0,117860.0,0.3903169]
[1755403588836,0.68974198,117870.0,117860.0,0.3903169]
[1755403592269,0.47195999,117870.0,117860.0,0.3903169]
[1755403599055,0.47195999,117870.0,117860.0,0.60809889]
[1755403599276,0.47195999,117870.0,117860.0,0.47064731]
[1755403600515,0.47195999,117870.0,117860.0,0.3903169]
[1755403602500,0.47195999,117870.0,117860.0,0.60809889]
[1755403602707,0.47195999,117870.0,117860.0,0.82588088]
[1755403603575,0.47095999,117870.0,117860.0,0.85137488]
[1755403604007,0.46995999,117870.0,117860.0,0.85337488]
[1755403604206,0.46995999,117870.0,117860.0,0.93819612]
[1755403604419,0.46995999,117870.0,117860.0,0.93919612]
[1755403604859,0.46995999,117870.0,117860.0,0.93819612]
[1755403605300,0.46995999,117870.0,117860.0,0.93719612]
[1755403606265,0.46995999,117870.0,117860.0,0.93919612]
[1755403612062,0.46995999,117870.0,117860.0,0.50363214]
[1755403612279,0.46995999,117870.0,117860.0,0.93919612]
[1755403620125,0.46995999,117870.0,117860.0,0.50363214]
[1755403620361,0.46995999,117870.0,117860.0,0.93919612]
[1755403622034,0.46995999,117870.0,117860.0,1.29664514]
[1755403625022,0.46995999,117870.0,117860.0,0.86108116]
[1755403625218,0.46995999,117870.0,117860.0,1.29664514]
[1755403627896,0.46995999,117870.0,117860.0,0.86108116]
[1755403628135,0.46995999,117870.0,117860.0,1.29664514]
[1755403635810,0.46995999,117870.0,117860.0,0.86108116]
[1755403636032,0.46995999,117870.0,117860.0,1.29664514]
[1755403644332,0.46995999,117870.0,117860.0,0.86108116]
[1755403644543,0.46995999,117870.0,117860.0,1.29664514]
[1755403644962,0.46995999,117870.0,117860.0,0.86108116]
[1755403645168,0.46995999,117870.0,117860.0,1.29664514]